[Event "Titled Tuesday Blitz March 21 Early 2023"]
[White "Drygalov, Andrey"]
[Black "Rozman, Levy"]
[WhiteFideId "24171735"]
[BlackFideId "2039877"]
[WhiteElo "2471"]
[BlackElo "2376"]
[Result "1-0"]
[Round "07"]
[TimeControl "180+2"]
[Date "2023.03.21"]
[WhiteClock "0:01:17"]
[BlackClock "0:00:09"]

1. e4 {[%clk 0:03:00]}  c6 {[%clk 0:02:59]} 2. Nf3 {[%clk 0:02:57]}  d5 {[%clk 0:03:00]} 3. d3 {[%clk 0:02:58]}  g6 {[%clk 0:02:59]} 4. e5 {[%clk 0:02:55]}  Bg7 {[%clk 0:02:58]} 5. d4 {[%clk 0:02:56]}  f6 {[%clk 0:02:57]} 6. exf6 {[%clk 0:02:55]}  Nxf6 {[%clk 0:02:56]} 7. Be2 {[%clk 0:02:54]}  O-O {[%clk 0:02:57]} 8. O-O {[%clk 0:02:55]}  Bg4 {[%clk 0:02:53]} 9. c4 {[%clk 0:02:55]}  Ne4 {[%clk 0:02:41]} 10. Nc3 {[%clk 0:02:54]}  Nd7 {[%clk 0:02:27]} 11. cxd5 {[%clk 0:02:46]}  Nxc3 {[%clk 0:02:25]} 12. bxc3 {[%clk 0:02:47]}  cxd5 {[%clk 0:02:25]} 13. Ng5 {[%clk 0:02:48]}  Bxe2 {[%clk 0:01:52]} 14. Qxe2 {[%clk 0:02:48]}  Qb6 {[%clk 0:01:52]} 15. Qxe7 {[%clk 0:02:43]}  Nf6 {[%clk 0:01:42]} 16. Ba3 {[%clk 0:01:42]}  Rfe8 {[%clk 0:01:28]} 17. Qf7+ {[%clk 0:01:29]}  Kh8 {[%clk 0:01:27]} 18. Rfe1 {[%clk 0:01:27]}  Ne4 {[%clk 0:00:26]} 19. Qxd5 {[%clk 0:01:25]}  Nxg5 {[%clk 0:00:21]} 20. Qxg5 {[%clk 0:01:26]}  Rxe1+ {[%clk 0:00:16]} 21. Rxe1 {[%clk 0:01:26]}  Qa6 {[%clk 0:00:17]} 22. Bb4 {[%clk 0:01:17]}  Qxa2 {[%clk 0:00:16]} 23. Qb5 {[%clk 0:01:17]}  Qd2 {[%clk 0:00:09]} 1-0


[Site "https://www.chess.com"]

[Event "Titled Tuesday Blitz March 21 Early 2023"]
[White "Mekhitarian, Krikor Sevag"]
[Black "Srinath, Rao S.V."]
[WhiteFideId "2107660"]
[BlackFideId "5028876"]
[WhiteElo "2604"]
[BlackElo "2196"]
[Result "1-0"]
[Round "07"]
[TimeControl "180+2"]
[Date "2023.03.21"]
[WhiteClock "0:00:53"]
[BlackClock "0:01:39"]

1. Nf3 {[%clk 0:03:00]}  Nf6 {[%clk 0:02:59]} 2. c4 {[%clk 0:02:52]}  g6 {[%clk 0:02:54]} 3. Nc3 {[%clk 0:02:50]}  Bg7 {[%clk 0:02:55]} 4. e4 {[%clk 0:02:50]}  d6 {[%clk 0:02:56]} 5. d4 {[%clk 0:02:49]}  O-O {[%clk 0:02:56]} 6. h3 {[%clk 0:02:50]}  e5 {[%clk 0:02:54]} 7. d5 {[%clk 0:02:50]}  a5 {[%clk 0:02:54]} 8. Be3 {[%clk 0:02:48]}  Na6 {[%clk 0:02:53]} 9. g4 {[%clk 0:02:48]}  Nc5 {[%clk 0:02:52]} 10. Nd2 {[%clk 0:02:48]}  c6 {[%clk 0:02:45]} 11. Be2 {[%clk 0:02:36]}  cxd5 {[%clk 0:02:43]} 12. cxd5 {[%clk 0:02:37]}  Nfd7 {[%clk 0:02:35]} 13. h4 {[%clk 0:02:27]}  f5 {[%clk 0:02:35]} 14. gxf5 {[%clk 0:02:26]}  gxf5 {[%clk 0:02:35]} 15. exf5 {[%clk 0:02:24]}  Nf6 {[%clk 0:02:32]} 16. Qc2 {[%clk 0:01:48]}  Qd7 {[%clk 0:02:31]} 17. Nc4 {[%clk 0:01:27]}  Qc7 {[%clk 0:01:51]} 18. Nb5 {[%clk 0:01:25]}  Qe7 {[%clk 0:01:45]} 19. Nbxd6 {[%clk 0:01:12]}  Ncd7 {[%clk 0:01:42]} 20. O-O-O {[%clk 0:01:03]}  Ne8 {[%clk 0:01:41]} 21. Nxe8 {[%clk 0:00:55]}  Rxe8 {[%clk 0:01:41]} 22. Rhg1 {[%clk 0:00:53]}  Nf6 {[%clk 0:01:39]} 1-0


[Site "https://www.chess.com"]

[Event "Titled Tuesday Blitz March 21 Early 2023"]
[White "Taboas Rodriguez, Daniel"]
[Black "Zakhartsov, Vladimir"]
[WhiteFideId "2208466"]
[BlackFideId "4145097"]
[WhiteElo "2365"]
[BlackElo "2521"]
[Result "0-1"]
[Round "07"]
[TimeControl "180+2"]
[Date "2023.03.21"]
[WhiteClock "0:00:16"]
[BlackClock "0:00:10"]

1. d4 {[%clk 0:03:00]}  d5 {[%clk 0:02:58]} 2. c4 {[%clk 0:02:59]}  e6 {[%clk 0:02:58]} 3. Nf3 {[%clk 0:02:58]}  g6 {[%clk 0:02:57]} 4. Nc3 {[%clk 0:02:57]}  Bg7 {[%clk 0:02:57]} 5. e4 {[%clk 0:02:57]}  Ne7 {[%clk 0:02:57]} 6. cxd5 {[%clk 0:02:48]}  exd5 {[%clk 0:02:58]} 7. e5 {[%clk 0:02:48]}  O-O {[%clk 0:02:54]} 8. Bd3 {[%clk 0:02:48]}  c5 {[%clk 0:02:54]} 9. dxc5 {[%clk 0:02:47]}  Nd7 {[%clk 0:02:53]} 10. O-O {[%clk 0:02:47]}  Nxc5 {[%clk 0:02:52]} 11. Bg5 {[%clk 0:02:44]}  Bg4 {[%clk 0:02:48]} 12. Re1 {[%clk 0:02:42]}  h6 {[%clk 0:02:45]} 13. Bxe7 {[%clk 0:02:42]}  Qxe7 {[%clk 0:02:44]} 14. Nxd5 {[%clk 0:02:43]}  Qd7 {[%clk 0:02:41]} 15. Bc4 {[%clk 0:02:12]}  b5 {[%clk 0:02:29]} 16. Bf1 {[%clk 0:02:11]}  Rad8 {[%clk 0:02:19]} 17. Nf6+ {[%clk 0:02:11]}  Bxf6 {[%clk 0:02:18]} 18. exf6 {[%clk 0:02:11]}  Qf5 {[%clk 0:02:07]} 19. Qc1 {[%clk 0:01:46]}  Bxf3 {[%clk 0:02:00]} 20. gxf3 {[%clk 0:01:47]}  Ne6 {[%clk 0:01:45]} 21. Qxh6 {[%clk 0:01:37]}  Qxf6 {[%clk 0:01:45]} 22. Bxb5 {[%clk 0:01:33]}  Nf4 {[%clk 0:01:44]} 23. Bf1 {[%clk 0:01:30]}  Rd5 {[%clk 0:01:43]} 24. Re4 {[%clk 0:01:25]}  Rg5+ {[%clk 0:01:35]} 25. Kh1 {[%clk 0:01:25]}  Nd3 {[%clk 0:01:29]} 26. Qxg5 {[%clk 0:01:05]}  Nxf2+ {[%clk 0:01:28]} 27. Kg2 {[%clk 0:01:04]}  Qxg5+ {[%clk 0:01:28]} 28. Kxf2 {[%clk 0:01:05]}  Kg7 {[%clk 0:01:20]} 29. Rae1 {[%clk 0:01:03]}  Rh8 {[%clk 0:01:19]} 30. h3 {[%clk 0:01:04]}  Rd8 {[%clk 0:01:12]} 31. R1e2 {[%clk 0:01:03]}  Rd1 {[%clk 0:01:11]} 32. b3 {[%clk 0:01:01]}  Qc1 {[%clk 0:01:09]} 33. Bg2 {[%clk 0:01:00]}  Qc5+ {[%clk 0:01:09]} 34. Kg3 {[%clk 0:01:00]}  Qd6+ {[%clk 0:01:09]} 35. Kf2 {[%clk 0:00:59]}  Qh2 {[%clk 0:01:06]} 36. Re7 {[%clk 0:00:57]}  a5 {[%clk 0:01:03]} 37. Re1 {[%clk 0:00:53]}  Rd2+ {[%clk 0:00:52]} 38. R7e2 {[%clk 0:00:53]}  Rd5 {[%clk 0:00:50]} 39. Re4 {[%clk 0:00:52]}  Rd2+ {[%clk 0:00:43]} 40. R4e2 {[%clk 0:00:51]}  Rd8 {[%clk 0:00:42]} 41. Re4 {[%clk 0:00:51]}  Qc7 {[%clk 0:00:29]} 42. R4e3 {[%clk 0:00:47]}  Qb6 {[%clk 0:00:29]} 43. Re2 {[%clk 0:00:45]}  f5 {[%clk 0:00:27]} 44. f4 {[%clk 0:00:41]}  Rd4 {[%clk 0:00:24]} 45. Kg3 {[%clk 0:00:40]}  Qd6 {[%clk 0:00:23]} 46. Rf3 {[%clk 0:00:40]}  g5 {[%clk 0:00:20]} 47. Ref2 {[%clk 0:00:38]}  Kf6 {[%clk 0:00:19]} 48. Bf1 {[%clk 0:00:37]}  gxf4+ {[%clk 0:00:13]} 49. Rxf4 {[%clk 0:00:38]}  Qe5 {[%clk 0:00:07]} 50. h4 {[%clk 0:00:35]}  Re4 {[%clk 0:00:04]} 51. Bg2 {[%clk 0:00:35]}  Rxf4 {[%clk 0:00:03]} 52. Rxf4 {[%clk 0:00:35]}  Qe3+ {[%clk 0:00:03]} 53. Rf3 {[%clk 0:00:35]}  Qe5+ {[%clk 0:00:03]} 54. Kh3 {[%clk 0:00:33]}  Qe4 {[%clk 0:00:03]} 55. Rg3 {[%clk 0:00:26]}  Qe2 {[%clk 0:00:03]} 56. a4 {[%clk 0:00:24]}  Ke5 {[%clk 0:00:02]} 57. Bf3 {[%clk 0:00:22]}  Qf2 {[%clk 0:00:02]} 58. Bg2 {[%clk 0:00:22]}  Kf6 {[%clk 0:00:02]} 59. Rf3 {[%clk 0:00:21]}  Qd4 {[%clk 0:00:02]} 60. Kg3 {[%clk 0:00:21]}  Qg4+ {[%clk 0:00:03]} 61. Kf2 {[%clk 0:00:21]}  Qxh4+ {[%clk 0:00:03]} 62. Ke2 {[%clk 0:00:22]}  Ke5 {[%clk 0:00:04]} 63. Re3+ {[%clk 0:00:22]}  Kd4 {[%clk 0:00:03]} 64. Rd3+ {[%clk 0:00:22]}  Kc5 {[%clk 0:00:02]} 65. Rf3 {[%clk 0:00:22]}  f4 {[%clk 0:00:02]} 66. Rc3+ {[%clk 0:00:20]}  Kb4 {[%clk 0:00:02]} 67. Rf3 {[%clk 0:00:21]}  Qg4 {[%clk 0:00:02]} 68. Kf2 {[%clk 0:00:21]}  Qf5 {[%clk 0:00:03]} 69. Kg1 {[%clk 0:00:21]}  Qb1+ {[%clk 0:00:03]} 70. Kh2 {[%clk 0:00:21]}  Qf5 {[%clk 0:00:04]} 71. Kg1 {[%clk 0:00:21]}  Qe5 {[%clk 0:00:04]} 72. Kh2 {[%clk 0:00:21]}  Qd4 {[%clk 0:00:05]} 73. Kh3 {[%clk 0:00:21]}  Kc5 {[%clk 0:00:05]} 74. Kg4 {[%clk 0:00:21]}  Qg7+ {[%clk 0:00:06]} 75. Kh3 {[%clk 0:00:20]}  Qh6+ {[%clk 0:00:07]} 76. Kg4 {[%clk 0:00:20]}  Qg6+ {[%clk 0:00:07]} 77. Kxf4 {[%clk 0:00:19]}  Qxg2 {[%clk 0:00:07]} 78. Re3 {[%clk 0:00:20]}  Kb4 {[%clk 0:00:07]} 79. Rf3 {[%clk 0:00:19]}  Qd2+ {[%clk 0:00:06]} 80. Re3 {[%clk 0:00:18]}  Kc5 {[%clk 0:00:06]} 81. Ke4 {[%clk 0:00:19]}  Qc2+ {[%clk 0:00:06]} 82. Kf3 {[%clk 0:00:19]}  Kd4 {[%clk 0:00:07]} 83. Re2 {[%clk 0:00:10]}  Qxb3+ {[%clk 0:00:06]} 84. Kf2 {[%clk 0:00:11]}  Qxa4 {[%clk 0:00:06]} 85. Ke1 {[%clk 0:00:12]}  Qa1+ {[%clk 0:00:06]} 86. Kd2 {[%clk 0:00:12]}  Qc3+ {[%clk 0:00:06]} 87. Kd1 {[%clk 0:00:13]}  Qa1+ {[%clk 0:00:05]} 88. Kd2 {[%clk 0:00:13]}  a4 {[%clk 0:00:05]} 89. Re1 {[%clk 0:00:13]}  Qc3+ {[%clk 0:00:05]} 90. Kd1 {[%clk 0:00:13]}  Qxe1+ {[%clk 0:00:05]} 91. Kxe1 {[%clk 0:00:13]}  a3 {[%clk 0:00:06]} 92. Kd2 {[%clk 0:00:14]}  a2 {[%clk 0:00:07]} 93. Kc2 {[%clk 0:00:14]}  a1=Q {[%clk 0:00:08]} 94. Kb3 {[%clk 0:00:15]}  Qc3+ {[%clk 0:00:08]} 95. Ka2 {[%clk 0:00:15]}  Qb4 {[%clk 0:00:08]} 96. Ka1 {[%clk 0:00:15]}  Kc3 {[%clk 0:00:09]} 97. Ka2 {[%clk 0:00:16]}  Qb2# {[%clk 0:00:10]} 0-1


[Site "https://www.chess.com"]

[Event "Titled Tuesday Blitz March 21 Early 2023"]
[White "Ben Artzi, Ido"]
[Black "Molina, Roberto Junio Brito"]
[WhiteFideId "2810913"]
[BlackFideId "2109450"]
[WhiteElo "2204"]
[BlackElo "2376"]
[Result "0-1"]
[Round "07"]
[TimeControl "180+2"]
[Date "2023.03.21"]
[WhiteClock "0:00:05"]
[BlackClock "0:00:25"]

1. d4 {[%clk 0:02:35]}  d5 {[%clk 0:02:58]} 2. c4 {[%clk 0:02:33]}  c6 {[%clk 0:02:59]} 3. cxd5 {[%clk 0:02:33]}  cxd5 {[%clk 0:02:58]} 4. Bf4 {[%clk 0:02:33]}  Nf6 {[%clk 0:02:57]} 5. Nc3 {[%clk 0:02:33]}  Qb6 {[%clk 0:02:57]} 6. e3 {[%clk 0:02:28]}  Qxb2 {[%clk 0:02:56]} 7. Rc1 {[%clk 0:02:15]}  Nc6 {[%clk 0:02:51]} 8. Bd3 {[%clk 0:01:57]}  a6 {[%clk 0:02:40]} 9. Nge2 {[%clk 0:01:45]}  e6 {[%clk 0:02:26]} 10. O-O {[%clk 0:01:41]}  Qa3 {[%clk 0:02:21]} 11. Na4 {[%clk 0:01:37]}  Nd7 {[%clk 0:02:19]} 12. Bc7 {[%clk 0:01:27]}  Bd6 {[%clk 0:02:06]} 13. Rc3 {[%clk 0:01:24]}  Qxc3 {[%clk 0:02:06]} 14. Nexc3 {[%clk 0:01:19]}  Bxc7 {[%clk 0:02:06]} 15. e4 {[%clk 0:01:19]}  dxe4 {[%clk 0:02:05]} 16. Bxe4 {[%clk 0:01:13]}  O-O {[%clk 0:02:03]} 17. d5 {[%clk 0:01:13]}  exd5 {[%clk 0:01:53]} 18. Nxd5 {[%clk 0:01:13]}  Bd8 {[%clk 0:01:53]} 19. Qc2 {[%clk 0:00:52]}  g6 {[%clk 0:01:52]} 20. Rd1 {[%clk 0:00:52]}  Nf6 {[%clk 0:01:46]} 21. Nxf6+ {[%clk 0:00:47]}  Bxf6 {[%clk 0:01:46]} 22. Bxc6 {[%clk 0:00:47]}  bxc6 {[%clk 0:01:46]} 23. Qxc6 {[%clk 0:00:47]}  Be6 {[%clk 0:01:46]} 24. Nb6 {[%clk 0:00:42]}  Rad8 {[%clk 0:01:44]} 25. Rxd8 {[%clk 0:00:39]}  Rxd8 {[%clk 0:01:45]} 26. h3 {[%clk 0:00:35]}  Rd1+ {[%clk 0:01:42]} 27. Kh2 {[%clk 0:00:35]}  Be5+ {[%clk 0:01:43]} 28. g3 {[%clk 0:00:35]}  Rd2 {[%clk 0:01:39]} 29. Kg2 {[%clk 0:00:13]}  Bd4 {[%clk 0:01:30]} 30. Qe8+ {[%clk 0:00:06]}  Kg7 {[%clk 0:01:30]} 31. Nd7 {[%clk 0:00:05]}  Rxf2+ {[%clk 0:01:20]} 32. Kg1 {[%clk 0:00:05]}  Rxa2+ {[%clk 0:00:46]} 33. Kf1 {[%clk 0:00:04]}  Bc4+ {[%clk 0:00:37]} 34. Ke1 {[%clk 0:00:04]}  Bc3+ {[%clk 0:00:25]} 35. Kd1 {[%clk 0:00:05]}  Bb3+ {[%clk 0:00:25]} 36. Kc1 {[%clk 0:00:05]}  Ra1# {[%clk 0:00:25]} 0-1


[Site "https://www.chess.com"]

[Event "Titled Tuesday Blitz March 21 Early 2023"]
[White "Movahed, Sina"]
[Black "Santos Flores, Alberto"]
[WhiteFideId "42520835"]
[BlackFideId "3601234"]
[WhiteElo "2225"]
[BlackElo "2235"]
[Result "1-0"]
[Round "07"]
[TimeControl "180+2"]
[Date "2023.03.21"]
[WhiteClock "0:01:09"]
[BlackClock "0:00:05"]

1. e4 {[%clk 0:03:00]}  c5 {[%clk 0:02:58]} 2. Nf3 {[%clk 0:03:01]}  Nc6 {[%clk 0:02:58]} 3. Bb5 {[%clk 0:03:00]}  g6 {[%clk 0:02:58]} 4. O-O {[%clk 0:03:00]}  Bg7 {[%clk 0:02:58]} 5. c3 {[%clk 0:03:00]}  Nf6 {[%clk 0:02:58]} 6. Re1 {[%clk 0:03:00]}  O-O {[%clk 0:02:57]} 7. h3 {[%clk 0:02:57]}  d5 {[%clk 0:02:57]} 8. e5 {[%clk 0:02:57]}  Ne8 {[%clk 0:02:56]} 9. d4 {[%clk 0:02:57]}  cxd4 {[%clk 0:02:55]} 10. cxd4 {[%clk 0:02:58]}  Nc7 {[%clk 0:02:56]} 11. Bf1 {[%clk 0:02:53]}  b6 {[%clk 0:02:42]} 12. Nc3 {[%clk 0:02:49]}  Ba6 {[%clk 0:02:36]} 13. Bxa6 {[%clk 0:02:48]}  Nxa6 {[%clk 0:02:37]} 14. Qa4 {[%clk 0:02:48]}  Nab8 {[%clk 0:02:22]} 15. e6 {[%clk 0:02:45]}  fxe6 {[%clk 0:02:04]} 16. Rxe6 {[%clk 0:02:46]}  Rxf3 {[%clk 0:02:00]} 17. gxf3 {[%clk 0:02:36]}  Nxd4 {[%clk 0:02:00]} 18. Re3 {[%clk 0:02:36]}  Nbc6 {[%clk 0:01:35]} 19. Kg2 {[%clk 0:02:21]}  e6 {[%clk 0:01:34]} 20. Rxe6 {[%clk 0:02:01]}  b5 {[%clk 0:01:01]} 21. Qa6 {[%clk 0:01:57]}  Nxe6 {[%clk 0:00:19]} 22. Qxc6 {[%clk 0:01:56]}  Nd4 {[%clk 0:00:19]} 23. Qxd5+ {[%clk 0:01:53]}  Qxd5 {[%clk 0:00:19]} 24. Nxd5 {[%clk 0:01:54]}  Rd8 {[%clk 0:00:17]} 25. Nc3 {[%clk 0:01:53]}  b4 {[%clk 0:00:17]} 26. Bg5 {[%clk 0:01:43]}  bxc3 {[%clk 0:00:14]} 27. Bxd8 {[%clk 0:01:31]}  cxb2 {[%clk 0:00:15]} 28. Rb1 {[%clk 0:01:31]}  Nb5 {[%clk 0:00:16]} 29. Be7 {[%clk 0:01:31]}  Kf7 {[%clk 0:00:15]} 30. Bc5 {[%clk 0:01:29]}  Ke6 {[%clk 0:00:11]} 31. a4 {[%clk 0:01:28]}  Kd5 {[%clk 0:00:12]} 32. Be7 {[%clk 0:01:14]}  Nd6 {[%clk 0:00:12]} 33. Rd1+ {[%clk 0:01:12]}  Ke6 {[%clk 0:00:10]} 34. Bxd6 {[%clk 0:01:10]}  b1=Q {[%clk 0:00:08]} 35. Rxb1 {[%clk 0:01:10]}  Kxd6 {[%clk 0:00:09]} 36. Rb7 {[%clk 0:01:10]}  Bd4 {[%clk 0:00:09]} 37. Rxh7 {[%clk 0:01:11]}  Ke5 {[%clk 0:00:08]} 38. Kg3 {[%clk 0:01:09]}  Kf5 {[%clk 0:00:09]} 39. f4 {[%clk 0:01:10]}  a5 {[%clk 0:00:07]} 40. Rb7 {[%clk 0:01:09]}  Bc3 {[%clk 0:00:07]} 41. Rb5+ {[%clk 0:01:09]}  Kf6 {[%clk 0:00:07]} 42. Kg4 {[%clk 0:01:09]}  Be1 {[%clk 0:00:07]} 43. Rb6+ {[%clk 0:01:09]}  Kf7 {[%clk 0:00:07]} 44. f3 {[%clk 0:01:10]}  Bd2 {[%clk 0:00:07]} 45. Ra6 {[%clk 0:01:11]}  Kg7 {[%clk 0:00:07]} 46. h4 {[%clk 0:01:09]}  Kh7 {[%clk 0:00:07]} 47. f5 {[%clk 0:01:08]}  gxf5+ {[%clk 0:00:05]} 48. Kxf5 {[%clk 0:01:09]} 1-0


[Site "https://www.chess.com"]

[Event "Titled Tuesday Blitz March 21 Early 2023"]
[White "Aditya Mittal"]
[Black "djokovic74"]
[WhiteFideId "35042025"]
[WhiteElo "2396"]
[BlackElo "2576"]
[Result "1-0"]
[Round "07"]
[TimeControl "180+2"]
[Date "2023.03.21"]
[WhiteClock "0:00:06"]
[BlackClock "0:00:03"]

1. d4 {[%clk 0:03:00]}  e6 {[%clk 0:03:00]} 2. c4 {[%clk 0:03:00]}  Nf6 {[%clk 0:02:59]} 3. Nf3 {[%clk 0:02:59]}  Bb4+ {[%clk 0:03:00]} 4. Bd2 {[%clk 0:02:59]}  Qe7 {[%clk 0:03:00]} 5. g3 {[%clk 0:02:56]}  Nc6 {[%clk 0:03:00]} 6. a3 {[%clk 0:02:55]}  Bxd2+ {[%clk 0:03:00]} 7. Qxd2 {[%clk 0:02:56]}  a5 {[%clk 0:02:57]} 8. Nc3 {[%clk 0:02:56]}  d6 {[%clk 0:02:52]} 9. Bg2 {[%clk 0:02:56]}  O-O {[%clk 0:02:39]} 10. O-O {[%clk 0:02:55]}  e5 {[%clk 0:02:20]} 11. Nd5 {[%clk 0:02:55]}  Qd8 {[%clk 0:01:43]} 12. Rfd1 {[%clk 0:02:48]}  Bf5 {[%clk 0:01:30]} 13. dxe5 {[%clk 0:02:33]}  dxe5 {[%clk 0:01:26]} 14. Qg5 {[%clk 0:02:32]}  Bg6 {[%clk 0:00:53]} 15. Nb6 {[%clk 0:02:24]}  Qe7 {[%clk 0:00:53]} 16. Nxa8 {[%clk 0:02:24]}  Rxa8 {[%clk 0:00:54]} 17. h3 {[%clk 0:02:03]}  a4 {[%clk 0:00:53]} 18. Qe3 {[%clk 0:02:01]}  h6 {[%clk 0:00:46]} 19. Rd2 {[%clk 0:02:00]}  Ne4 {[%clk 0:00:39]} 20. Rd5 {[%clk 0:01:51]}  Nf6 {[%clk 0:00:24]} 21. Rb5 {[%clk 0:01:50]}  e4 {[%clk 0:00:25]} 22. Nh4 {[%clk 0:01:48]}  Ne5 {[%clk 0:00:23]} 23. Qc5 {[%clk 0:01:40]}  Qxc5 {[%clk 0:00:20]} 24. Rxc5 {[%clk 0:01:41]}  Nc6 {[%clk 0:00:21]} 25. Nxg6 {[%clk 0:01:41]}  fxg6 {[%clk 0:00:20]} 26. Rd1 {[%clk 0:01:41]}  Kf7 {[%clk 0:00:20]} 27. f3 {[%clk 0:01:31]}  Re8 {[%clk 0:00:18]} 28. fxe4 {[%clk 0:01:28]}  Nxe4 {[%clk 0:00:18]} 29. Bxe4 {[%clk 0:01:24]}  Rxe4 {[%clk 0:00:19]} 30. Rd7+ {[%clk 0:01:16]}  Ke6 {[%clk 0:00:16]} 31. Rxc7 {[%clk 0:01:05]}  Kd6 {[%clk 0:00:14]} 32. R5xc6+ {[%clk 0:00:46]}  bxc6 {[%clk 0:00:14]} 33. Rxg7 {[%clk 0:00:30]}  Rxe2 {[%clk 0:00:15]} 34. Rxg6+ {[%clk 0:00:27]}  Kc5 {[%clk 0:00:15]} 35. Rg8 {[%clk 0:00:25]}  Rxb2 {[%clk 0:00:16]} 36. Ra8 {[%clk 0:00:26]}  Kxc4 {[%clk 0:00:12]} 37. Rxa4+ {[%clk 0:00:26]}  Kd5 {[%clk 0:00:06]} 38. Rh4 {[%clk 0:00:15]}  c5 {[%clk 0:00:05]} 39. Kf1 {[%clk 0:00:16]}  c4 {[%clk 0:00:05]} 40. Ke1 {[%clk 0:00:16]}  Rg2 {[%clk 0:00:04]} 41. Rg4 {[%clk 0:00:10]}  Kc5 {[%clk 0:00:02]} 42. Kd1 {[%clk 0:00:08]}  Kb5 {[%clk 0:00:02]} 43. h4 {[%clk 0:00:07]}  Kc5 {[%clk 0:00:01]} 44. Kc1 {[%clk 0:00:06]}  Kb5 {[%clk 0:00:02]} 45. h5 {[%clk 0:00:06]}  Kc5 {[%clk 0:00:02]} 46. Kd1 {[%clk 0:00:06]}  Kb5 {[%clk 0:00:02]} 47. Rg6 {[%clk 0:00:07]}  c3 {[%clk 0:00:01]} 48. g4 {[%clk 0:00:06]}  Kc4 {[%clk 0:00:01]} 49. g5 {[%clk 0:00:07]}  Kd3 {[%clk 0:00:02]} 50. Rd6+ {[%clk 0:00:07]}  Kc4 {[%clk 0:00:02]} 51. gxh6 {[%clk 0:00:08]}  Rg1+ {[%clk 0:00:03]} 52. Kc2 {[%clk 0:00:08]}  Rg2+ {[%clk 0:00:03]} 53. Kc1 {[%clk 0:00:08]}  Rg1+ {[%clk 0:00:03]} 54. Rd1 {[%clk 0:00:09]}  Rg5 {[%clk 0:00:02]} 55. Rh1 {[%clk 0:00:07]}  Rg8 {[%clk 0:00:02]} 56. h7 {[%clk 0:00:05]}  Rh8 {[%clk 0:00:02]} 57. h6 {[%clk 0:00:05]}  Rxh7 {[%clk 0:00:02]} 58. Kc2 {[%clk 0:00:06]}  Rb7 {[%clk 0:00:02]} 59. Rh4+ {[%clk 0:00:05]}  Kc5 {[%clk 0:00:02]} 60. h7 {[%clk 0:00:06]}  Rb2+ {[%clk 0:00:01]} 61. Kxc3 {[%clk 0:00:07]}  Ra2 {[%clk 0:00:02]} 62. Kb3 {[%clk 0:00:06]}  Ra1 {[%clk 0:00:02]} 63. h8=Q {[%clk 0:00:06]}  Rb1+ {[%clk 0:00:02]} 64. Qb2 {[%clk 0:00:05]}  Rxb2+ {[%clk 0:00:03]} 65. Kxb2 {[%clk 0:00:06]} 1-0


[Site "https://www.chess.com"]

[Event "Titled Tuesday Blitz March 21 Early 2023"]
[White "Raahul V S"]
[Black "Narayanan, Srinath"]
[WhiteFideId "25035525"]
[BlackFideId "5018420"]
[WhiteElo "2168"]
[BlackElo "2438"]
[Result "1-0"]
[Round "07"]
[TimeControl "180+2"]
[Date "2023.03.21"]
[WhiteClock "0:00:13"]
[BlackClock "0:00:33"]

1. c4 {[%clk 0:03:00]}  e5 {[%clk 0:02:59]} 2. Nc3 {[%clk 0:03:00]}  Nf6 {[%clk 0:02:58]} 3. Nf3 {[%clk 0:02:59]}  Nc6 {[%clk 0:02:59]} 4. e3 {[%clk 0:02:57]}  Bb4 {[%clk 0:02:51]} 5. Qc2 {[%clk 0:02:57]}  Bxc3 {[%clk 0:02:48]} 6. bxc3 {[%clk 0:02:58]}  Qe7 {[%clk 0:02:48]} 7. e4 {[%clk 0:02:56]}  O-O {[%clk 0:02:47]} 8. g3 {[%clk 0:02:56]}  d6 {[%clk 0:02:47]} 9. Bg2 {[%clk 0:02:55]}  Nd7 {[%clk 0:02:48]} 10. d3 {[%clk 0:02:46]}  Nc5 {[%clk 0:02:47]} 11. Nh4 {[%clk 0:02:43]}  g6 {[%clk 0:02:46]} 12. O-O {[%clk 0:02:39]}  f5 {[%clk 0:02:43]} 13. Bh6 {[%clk 0:02:05]}  Rf7 {[%clk 0:02:43]} 14. exf5 {[%clk 0:02:04]}  gxf5 {[%clk 0:02:43]} 15. f4 {[%clk 0:01:53]}  Qf6 {[%clk 0:02:27]} 16. Bg5 {[%clk 0:01:50]}  Qg7 {[%clk 0:02:28]} 17. Bd5 {[%clk 0:01:26]}  Be6 {[%clk 0:02:26]} 18. Nf3 {[%clk 0:01:19]}  h6 {[%clk 0:02:05]} 19. Bh4 {[%clk 0:01:15]}  exf4 {[%clk 0:01:26]} 20. Kh1 {[%clk 0:01:13]}  fxg3 {[%clk 0:01:18]} 21. Bxg3 {[%clk 0:01:10]}  Rf6 {[%clk 0:00:52]} 22. Rg1 {[%clk 0:00:59]}  Rg6 {[%clk 0:00:52]} 23. d4 {[%clk 0:00:54]}  Ne4 {[%clk 0:00:52]} 24. Bxe6+ {[%clk 0:00:49]}  Rxe6 {[%clk 0:00:52]} 25. Be5 {[%clk 0:00:47]}  dxe5 {[%clk 0:00:50]} 26. Rxg7+ {[%clk 0:00:47]}  Kxg7 {[%clk 0:00:51]} 27. d5 {[%clk 0:00:47]}  Rg6 {[%clk 0:00:44]} 28. dxc6 {[%clk 0:00:47]}  bxc6 {[%clk 0:00:45]} 29. Nxe5 {[%clk 0:00:35]}  Rg5 {[%clk 0:00:42]} 30. Nf3 {[%clk 0:00:35]}  Rg6 {[%clk 0:00:40]} 31. Nh4 {[%clk 0:00:30]}  Rg5 {[%clk 0:00:38]} 32. Nxf5+ {[%clk 0:00:30]}  Rxf5 {[%clk 0:00:38]} 33. Qxe4 {[%clk 0:00:30]}  Raf8 {[%clk 0:00:39]} 34. Rg1+ {[%clk 0:00:29]}  Kh8 {[%clk 0:00:39]} 35. Qd4+ {[%clk 0:00:24]}  R8f6 {[%clk 0:00:37]} 36. Qd8+ {[%clk 0:00:16]}  Rf8 {[%clk 0:00:38]} 37. Qxc7 {[%clk 0:00:16]}  R5f7 {[%clk 0:00:36]} 38. Qe5+ {[%clk 0:00:16]}  Kh7 {[%clk 0:00:35]} 39. Qe4+ {[%clk 0:00:14]}  Kh8 {[%clk 0:00:35]} 40. Qg6 {[%clk 0:00:15]}  Rh7 {[%clk 0:00:34]} 41. Qxc6 {[%clk 0:00:14]}  h5 {[%clk 0:00:34]} 42. c5 {[%clk 0:00:14]}  h4 {[%clk 0:00:33]} 43. Qd6 {[%clk 0:00:13]} 1-0


[Site "https://www.chess.com"]